bitfinex/quotes_SOLUSD_20220211
["timestamp","ask_amount","ask_price","bid_price","bid_amount"]
[1644539031124,4.738,105.55,105.46,57.1823619]
[1644539031723,4.738,105.55,105.46,76.89783446]
[1644539031924,4.739,105.57,105.46,76.89783446]
[1644539032729,36.20803855,105.56,105.46,76.89783446]
[1644539032926,4.738,105.55,105.46,76.89783446]
[1644539033128,36.20803855,105.56,105.46,76.89783446]
[1644539033330,36.20803855,105.56,105.47,1.95731066]
[1644539033528,4.738,105.57,105.48,14.2207]
[1644539033729,4.738,105.59,105.48,33.93617256]
[1644539033930,4.738,105.59,105.49,21.67807881]
[1644539034529,44.94519363,105.58,105.5,31.58813367]
[1644539034929,44.94519363,105.58,105.48,11.13]
[1644539035129,44.94519363,105.58,105.45,19.33174554]
[1644539035130,4.737,105.57,105.45,30.46174554]
[1644539035331,4.737,105.57,105.45,11.13]
[1644539035731,4.987,105.57,105.45,11.13]
[1644539035930,61.95372518,105.56,105.45,11.13]
[1644539036131,4.739,105.55,105.43,13.09260625]
[1644539036331,11.13,105.54,105.41,1.96260625]
[1644539036531,4.74,105.53,105.4,19.33174554]
[1644539036736,15.87,105.53,105.37,30.46174554]
[1644539036934,0.45,105.5,105.36,11.13]
[1644539037132,14.2376,105.48,105.35,11.13]
[1644539037332,52.4432,105.49,105.35,11.13]
[1644539037533,47.7012,105.49,105.36,18.15510109]
[1644539037735,4.742,105.48,105.37,11.13]
[1644539037937,44.54002568,105.47,105.37,11.13]
[1644539038135,4.742,105.46,105.37,41.90504518]
[1644539038333,42.44394597,105.45,105.37,42.15504518]
[1644539038737,42.44394597,105.45,105.37,43.86295369]
[1644539039133,42.44394597,105.45,105.37,44.11295369]
[1644539039335,4.743,105.48,105.37,43.86295369]
[1644539039533,4.743,105.48,105.37,75.78794108]
[1644539039734,4.742,105.49,105.37,75.78794108]
[1644539040352,38.38358219,105.48,105.37,75.78794108]
[1644539040554,4.742,105.47,105.37,73.83003257]
[1644539040753,35.98409868,105.46,105.37,88.31333257]
[1644539041555,23.0255,105.49,105.37,90.27124108]
[1644539041758,28.0175,105.49,105.37,90.27124108]
[1644539041955,27.7675,105.49,105.37,90.27124108]
[1644539042157,4.742,105.49,105.37,90.27124108]
[1644539042457,40.94031974,105.48,105.37,105.69165624]
[1644539043354,40.94031974,105.48,105.37,97.48374773]
[1644539043355,41.19031974,105.48,105.37,97.48374773]
[1644539043556,41.19031974,105.48,105.37,56.13834518]
[1644539043754,4.742,105.47,105.37,41.90504518]
[1644539043953,36.30930631,105.46,105.37,41.90504518]
[1644539044157,36.30930631,105.46,105.37,42.15504518]
[1644539044354,36.30930631,105.46,105.37,41.90504518]
[1644539044556,36.30930631,105.46,105.37,11.13]
[1644539044853,38.54052785,105.46,105.33,14.2392]
[1644539045253,38.79052785,105.46,105.33,25.3692]
[1644539045455,18.985,105.45,105.33,25.3692]
[1644539045659,40.1872458,105.44,105.34,45.13991577]
[1644539045859,40.1872458,105.44,105.33,11.13]
[1644539045860,46.64106095,105.42,105.33,11.13]
[1644539046058,46.64106095,105.42,105.32,11.13]
[1644539046259,4.745,105.41,105.32,11.13]
[1644539046865,40.9309203,105.4,105.33,43.87352921]
[1644539047463,40.9309203,105.4,105.32,11.13]
[1644539048269,4.745,105.43,105.33,1.95897788]
[1644539048468,22.7977,105.44,105.33,13.08897788]
[1644539048763,24.5448,105.45,105.34,16.71065665]
[1644539048968,24.5448,105.45,105.34,29.80492014]
[1644539049162,41.80378933,105.44,105.35,38.28593887]
[1644539049363,46.54678933,105.44,105.35,54.99659552]
[1644539050363,46.54678933,105.44,105.35,55.24659552]
[1644539050766,46.79678933,105.44,105.35,55.24659552]
[1644539051367,46.79678933,105.44,105.35,38.53593887]
[1644539051565,4.743,105.44,105.36,11.13]
[1644539051766,47.2733,105.45,105.36,11.38]
[1644539051966,22.5758,105.46,105.36,13.34426349]
[1644539052166,27.9999,105.5,105.37,1.96426349]
[1644539052366,23.5792,105.49,105.38,11.13]
[1644539052567,42.09022088,105.48,105.39,36.2619567]
[1644539052767,46.83222088,105.48,105.4,11.13]
[1644539054169,46.83222088,105.48,105.38,50.75931966]
[1644539054369,2.23122154,105.47,105.36,11.13]
[1644539054570,4.743,105.46,105.36,11.13]
[1644539054773,18.9821,105.46,105.36,11.13]
[1644539055372,46.18307975,105.45,105.37,47.09423634]
[1644539055770,46.18307975,105.45,105.37,47.34423634]
[1644539055974,46.18307975,105.45,105.37,47.09423634]
[1644539056373,46.18307975,105.45,105.37,58.22423634]
[1644539057374,46.43307975,105.45,105.37,58.22423634]
[1644539057775,46.43307975,105.45,105.37,72.45883634]
[1644539058175,4.743,105.48,105.37,89.16949299]
[1644539058374,52.7723,105.49,105.37,89.16949299]
[1644539058978,52.7723,105.49,105.37,72.45883634]
[1644539059175,36.59163711,105.48,105.37,72.70883634]
[1644539059375,4.742,105.47,105.37,72.70883634]
[1644539059575,45.79218734,105.46,105.37,72.70883634]
[1644539059775,45.79218734,105.46,105.37,74.67309983]
[1644539059977,45.79218734,105.46,105.37,91.38375648]
[1644539060578,45.79218734,105.46,105.37,89.41949299]
[1644539060978,45.79218734,105.46,105.37,91.14772355]
[1644539061184,48.27334483,105.44,105.37,72.45883634]
[1644539061483,48.27334483,105.44,105.37,11.13]
[1644539062481,48.27334483,105.44,105.37,13.10823056]
[1644539062680,4.743,105.43,105.37,1.97823056]
[1644539062880,4.743,105.43,105.33,11.13]
[1644539063082,48.27334483,105.44,105.33,11.13]
[1644539063382,14.67557677,105.48,105.34,45.3778819]
[1644539063383,39.76828648,105.42,105.34,45.3778819]
[1644539063581,39.76828648,105.42,105.34,59.6177819]
[1644539063783,39.76828648,105.42,105.34,87.70843855]
[1644539063981,39.76828648,105.42,105.34,104.97322207]
[1644539064181,39.76828648,105.42,105.34,106.31505219]
[1644539064682,39.76828648,105.42,105.34,106.06505219]
[1644539065086,39.76828648,105.42,105.34,106.31505219]
[1644539065683,14.2387,105.45,105.34,106.31505219]
[1644539065888,24.2422,105.47,105.34,106.31505219]
[1644539066084,24.2422,105.47,105.35,1.34183012]
[1644539066287,4.743,105.46,105.36,25.3671]
[1644539066685,41.84541537,105.45,105.37,29.17001367]
[1644539066985,4.743,105.44,105.36,11.13]
[1644539067886,44.70344458,105.43,105.36,11.13]
[1644539068189,44.70344458,105.43,105.35,44.86422133]
[1644539068386,4.744,105.42,105.35,44.86422133]
[1644539068587,37.82347929,105.41,105.33,12.47183012]
[1644539068987,37.82347929,105.41,105.33,11.13]
[1644539069587,52.06707929,105.41,105.32,1.34183012]
[1644539069787,4.745,105.4,105.33,28.40039815]
[1644539069991,47.76601186,105.39,105.33,28.40039815]
[1644539070188,52.51101186,105.39,105.33,28.40039815]
[1644539070390,47.76601186,105.39,105.33,28.40039815]
[1644539070589,47.76601186,105.39,105.31,12.47183012]
[1644539070790,48.01601186,105.39,105.31,12.47183012]
[1644539070990,48.01601186,105.39,105.31,11.13]
[1644539070991,52.76201186,105.39,105.31,11.13]
[1644539071589,52.76201186,105.39,105.31,13.10823056]
[1644539071590,52.51201186,105.39,105.31,13.10823056]
[1644539071790,4.746,105.43,105.32,35.35283069]
[1644539071991,14.2404,105.44,105.32,62.06706081]
[1644539072193,48.5567,105.43,105.33,1.97823056]
[1644539072597,48.5567,105.43,105.32,48.07466081]
[1644539072795,49.07683629,105.42,105.32,46.73283069]
[1644539073196,49.32683629,105.42,105.32,46.73283069]
[1644539073395,49.32683629,105.42,105.32,62.95426125]
[1644539073597,49.32683629,105.42,105.32,60.72603069]
[1644539074798,49.32683629,105.42,105.32,60.97603069]
[1644539075401,44.33283629,105.42,105.32,77.60441377]
[1644539075601,44.33283629,105.42,105.35,14.237]
[1644539075801,44.33283629,105.42,105.36,11.13]
[1644539076002,44.33283629,105.42,105.36,46.48283069]
[1644539076403,28.3589,105.46,105.36,46.48283069]
[1644539076605,4.745,105.46,105.37,14.237]
[1644539076806,4.745,105.46,105.37,26.008]
[1644539077006,4.745,105.46,105.38,13.11369325]
[1644539077305,38.9328109,105.47,105.39,39.19506488]
[1644539078003,38.9328109,105.47,105.38,11.13]
[1644539078204,53.1677109,105.47,105.39,14.2341]
[1644539078404,4.742,105.46,105.37,11.13]
[1644539078604,4.742,105.46,105.33,12.47183012]
[1644539078804,28.0135,105.46,105.33,17.13]
[1644539079005,36.06663391,105.45,105.34,48.12102354]
[1644539079210,44.21864288,105.43,105.34,59.25102354]
[1644539079404,44.21864288,105.43,105.34,73.49302354]
[1644539079604,44.21864288,105.43,105.34,62.36302354]
[1644539079805,54.69622154,105.45,105.34,62.36302354]
[1644539079806,40.66183166,105.41,105.34,62.36302354]
[1644539080206,40.66183166,105.41,105.35,1.98369325]
[1644539080409,65.6664,105.44,105.35,1.98369325]
[1644539080607,65.6664,105.44,105.36,14.2388]
[1644539080809,51.4276,105.44,105.36,14.2388]
[1644539081110,51.4276,105.44,105.36,16.22249325]
[1644539081321,42.47064729,105.43,105.34,59.25102354]
[1644539081521,4.744,105.42,105.34,59.25102354]
[1644539081823,46.41337308,105.41,105.34,25.371]
[1644539082021,46.41337308,105.41,105.32,11.13]
[1644539082220,4.745,105.4,105.31,1.34183012]
[1644539082421,14.2467,105.39,105.3,1.34183012]
[1644539082620,4.746,105.38,105.3,1.34183012]
[1644539082820,45.23779331,105.37,105.3,1.34183012]
[1644539083119,45.23779331,105.37,105.29,14.2488]
[1644539083321,34.72472787,105.35,105.28,12.47183012]
[1644539083521,48.97552787,105.35,105.28,11.13]
[1644539083722,49.22552787,105.35,105.28,11.13]
[1644539084325,34.97472787,105.35,105.28,11.13]
[1644539084723,4.747,105.34,105.28,11.13]
[1644539084923,4.747,105.34,105.27,0.04749691]
[1644539085424,38.49155223,105.33,105.27,0.04749691]
[1644539085625,38.49155223,105.33,105.23,127.3266019]
[1644539085626,16.0,105.32,105.23,15.43472347]
[1644539085825,20.748,105.32,105.23,15.43472347]
[1644539086026,20.748,105.32,105.2,2.29939012]
[1644539086227,67.9567,105.32,105.2,11.13]
[1644539086526,56.48074482,105.31,105.21,60.51619205]
[1644539086730,42.22414482,105.31,105.22,11.13]
[1644539087030,42.22414482,105.31,105.23,38.3795334]
[1644539087227,42.22414482,105.31,105.24,11.13]
[1644539087428,42.22414482,105.31,105.22,13.11369633]
[1644539087629,42.22414482,105.31,105.22,11.13]
[1644539087828,46.97314482,105.31,105.22,25.3852]
[1644539088031,42.22414482,105.31,105.22,25.3852]
[1644539088227,42.22414482,105.31,105.23,46.78023077]
[1644539088428,4.749,105.3,105.21,11.13]
[1644539088831,4.749,105.3,105.21,11.38]
[1644539089033,4.749,105.3,105.21,11.13]
[1644539089227,4.749,105.3,105.21,17.38]
[1644539089428,46.43662132,105.29,105.21,17.13]
[1644539089835,4.75,105.28,105.18,22.8683]
[1644539090030,4.75,105.28,105.18,33.9983]
[1644539090231,5.0,105.28,105.18,33.9983]
[1644539090431,42.1629572,105.27,105.19,34.22912619]
[1644539090634,4.751,105.26,105.19,34.22912619]
[1644539090833,44.02306156,105.25,105.18,14.2613]
[1644539091237,4.752,105.24,105.14,47.5447]
[1644539091433,4.752,105.24,105.11,29.34303883]
[1644539091634,16.0,105.23,105.08,53.55533273]
[1644539091832,16.19174978,105.22,105.08,50.83097678]
[1644539092046,48.2794,105.21,105.08,50.83097678]
[1644539092239,15.885,105.2,105.08,50.83097678]
[1644539092733,4.755,105.2,105.08,50.83097678]
[1644539092933,62.86334025,105.19,105.09,1.9889786]
[1644539093135,48.58604025,105.19,105.08,50.83097678]
[1644539093333,4.755,105.18,105.08,50.83097678]
[1644539093734,11.827,105.18,105.08,50.83097678]
[1644539093935,54.69324674,105.17,105.09,42.42112274]
[1644539094135,11.13,105.17,105.09,42.42112274]
[1644539094336,11.13,105.17,105.09,44.41305625]
[1644539094535,11.13,105.2,105.09,42.42112274]
[1644539094737,11.13,105.2,105.1,1.99193351]
[1644539094939,11.13,105.2,105.09,42.42112274]
[1644539095139,45.67665474,105.19,105.09,42.42112274]
[1644539095736,11.13,105.2,105.09,42.42112274]
[1644539095936,4.755,105.19,105.09,42.42112274]
[1644539096139,15.885,105.2,105.09,42.42112274]
[1644539096736,46.06100312,105.19,105.09,42.42112274]
[1644539096937,34.41691423,105.17,105.1,1.99277759]
[1644539097137,15.885,105.2,105.1,1.99277759]
[1644539097337,4.755,105.2,105.1,1.99277759]
[1644539097540,49.3695,105.21,105.1,1.99277759]
[1644539097739,49.3695,105.21,105.1,2.24277759]
[1644539097941,49.3695,105.21,105.1,1.99277759]
[1644539098239,39.68942807,105.2,105.11,35.37424204]
[1644539098439,44.44242807,105.2,105.11,35.37424204]
[1644539099240,44.69242807,105.2,105.11,35.37424204]
[1644539099639,5.003,105.2,105.11,35.37424204]
[1644539099840,182.5325,105.24,105.11,37.62707009]
[1644539100044,193.6625,105.24,105.11,50.22811603]
[1644539100239,193.6625,105.24,105.11,35.37424204]
[1644539100639,45.1177378,105.23,105.11,35.62424204]
[1644539100842,56.2477378,105.23,105.11,35.37424204]
[1644539101042,58.47895934,105.23,105.08,50.83097678]
[1644539101240,51.8144,105.22,105.08,50.83097678]
[1644539101442,11.13,105.21,105.08,50.83097678]
[1644539101640,4.755,105.2,105.08,50.83097678]
[1644539101843,11.13,105.19,105.08,50.83097678]
[1644539102041,39.95077974,105.17,105.09,42.01909726]
[1644539102442,39.95077974,105.17,105.09,44.017147]
[1644539102844,4.756,105.16,105.08,50.83097678]
[1644539103245,15.886,105.16,105.08,50.83097678]
[1644539103765,15.886,105.16,105.09,39.23653646]
[1644539103766,37.85575785,105.15,105.09,39.23653646]
[1644539103946,15.886,105.16,105.09,39.23653646]
[1644539104146,4.756,105.16,105.09,39.23653646]
[1644539104349,0.25,105.17,105.09,41.2345862]
[1644539104746,0.25,105.17,105.09,39.23653646]
[1644539105746,36.26276313,105.18,105.09,39.48653646]
[1644539105946,36.26276313,105.18,105.1,1.99887183]
[1644539106147,4.755,105.17,105.11,47.8193226]
[1644539106348,4.755,105.18,105.11,47.8193226]
[1644539106749,4.755,105.21,105.11,48.0693226]
[1644539107149,52.55735067,105.21,105.11,47.8193226]
[1644539107548,52.55735067,105.21,105.11,48.0693226]
[1644539107751,4.755,105.21,105.11,48.0693226]
[1644539107950,58.1914,105.22,105.11,50.06819443]
[1644539108150,47.0614,105.22,105.11,47.8193226]
[1644539108350,2.23122154,105.2,105.11,47.8193226]
[1644539108549,4.753,105.19,105.11,47.8193226]
[1644539108752,48.04699824,105.2,105.11,47.8193226]
[1644539108956,48.04699824,105.2,105.11,47.3193226]
[1644539109152,48.04699824,105.2,105.11,47.5693226]
[1644539109353,4.753,105.23,105.11,58.6993226]
[1644539109556,51.8539,105.26,105.12,2.00960939]
[1644539109756,15.882,105.29,105.13,11.13]
[1644539109954,15.882,105.29,105.13,24.05699845]
[1644539110156,15.882,105.29,105.15,14.2625]
[1644539110359,43.06314312,105.28,105.15,49.43288232]
[1644539110556,45.87881982,105.26,105.15,38.30288232]
[1644539110755,4.752,105.25,105.15,38.30288232]
[1644539110956,39.04176498,105.24,105.15,38.30288232]
[1644539111155,39.04176498,105.24,105.13,48.3069]
[1644539111156,4.753,105.23,105.12,13.13960939]
[1644539111359,15.883,105.23,105.08,50.83097678]
[1644539111559,23.6792,105.22,105.08,50.83097678]
[1644539111768,4.755,105.21,105.08,50.83097678]
[1644539111959,4.755,105.21,105.09,11.13]
[1644539112158,46.82388418,105.21,105.1,41.08320088]
[1644539112863,57.95388418,105.21,105.1,41.08320088]
[1644539113861,72.22838418,105.21,105.1,41.08320088]
[1644539114061,67.47338418,105.21,105.1,41.08320088]
[1644539114263,67.47338418,105.21,105.1,41.33320088]
[1644539114859,67.47338418,105.21,105.1,54.97869126]
[1644539114860,42.06888418,105.21,105.1,54.97869126]
[1644539115092,23.6792,105.22,105.1,66.10869126]
[1644539115284,23.6792,105.22,105.11,2.00966947]
[1644539115486,98.5722,105.24,105.12,11.13]
[1644539115683,4.753,105.23,105.12,24.77549038]
[1644539115882,4.753,105.23,105.12,25.02549038]
[1644539116085,34.66395586,105.22,105.08,124.96676561]
[1644539116384,34.66395586,105.22,105.08,50.83097678]
[1644539116385,15.885,105.21,105.08,50.83097678]
[1644539116583,18.11622154,105.21,105.08,50.83097678]
[1644539116784,2.23122154,105.2,105.08,50.83097678]
[1644539116987,14.2779,105.18,105.08,50.83097678]
[1644539117286,25.24422154,105.22,105.09,45.427542]
[1644539117483,34.143,105.22,105.09,45.427542]
[1644539117991,14.2765,105.19,105.08,50.83097678]
[1644539118187,11.13,105.18,105.08,50.83097678]
[1644539118386,4.756,105.17,105.08,50.83097678]
[1644539118587,14.70594302,105.16,105.08,50.83097678]
[1644539118789,52.48338345,105.15,105.09,45.49473055]
[1644539118986,11.13,105.17,105.09,45.49473055]
[1644539119887,3.57338899,105.16,105.09,45.49473055]
[1644539120088,45.37817571,105.16,105.09,45.49473055]
[1644539120287,61.88959725,105.16,105.09,45.49473055]
[1644539120489,59.65837571,105.16,105.09,45.49473055]
[1644539121490,59.65837571,105.16,105.08,50.83097678]
[1644539121691,4.756,105.15,105.08,50.83097678]
[1644539121889,11.13,105.14,105.08,50.83097678]
[1644539122089,4.756,105.13,105.08,50.83097678]
[1644539122498,4.756,105.13,105.09,46.76020533]
[1644539122694,11.13,105.14,105.09,46.76020533]
[1644539122890,23.4956,105.16,105.09,46.76020533]
[1644539123092,34.6256,105.16,105.09,46.76020533]
[1644539123690,34.8756,105.16,105.09,46.76020533]
[1644539123893,51.45097852,105.15,105.09,46.76020533]
[1644539124396,4.756,105.15,105.09,46.76020533]
[1644539124793,43.3206,105.18,105.09,48.77934126]
[1644539125395,41.75724441,105.17,105.09,48.77934126]
[1644539125697,41.75724441,105.17,105.09,49.02934126]
[1644539126495,41.75724441,105.17,105.09,48.77934126]
[1644539126701,67.16554441,105.17,105.08,50.83097678]
[1644539126896,8.33351404,105.16,105.08,50.83097678]
[1644539127098,14.70751404,105.15,105.08,50.83097678]
[1644539127297,11.13,105.15,105.08,50.83097678]
[1644539127697,11.13,105.15,105.09,36.17719633]
[1644539128497,4.756,105.16,105.09,36.17719633]
[1644539128697,29.0341,105.17,105.09,36.17719633]
[1644539129100,28.7841,105.17,105.09,36.17719633]
[1644539129297,28.7841,105.17,105.09,36.42719633]
[1644539129500,28.7841,105.17,105.09,36.17719633]
[1644539129998,14.70884641,105.16,105.09,36.17719633]
[1644539130199,41.14145969,105.15,105.09,36.17719633]
[1644539130399,25.4132,105.14,105.09,36.17719633]
[1644539130601,47.19789363,105.13,105.08,50.83097678]
[1644539130802,42.44189363,105.13,105.08,50.83097678]
[1644539131404,67.85479363,105.13,105.08,50.83097678]
[1644539131701,67.85479363,105.13,105.06,0.35241187]
[1644539131702,35.74773739,105.11,105.07,44.55718698]
[1644539131902,35.74773739,105.11,105.06,0.35241187]
[1644539132102,4.758,105.1,105.06,0.35241187]
[1644539132302,19.0453,105.1,105.06,0.35241187]
[1644539133104,46.59214761,105.09,105.06,0.35241187]
[1644539133307,6.06439994,105.08,105.06,0.35241187]
[1644539133502,25.11289994,105.08,105.06,0.35241187]
[1644539133704,25.11289994,105.08,105.0,10.7]
[1644539133904,36.24289994,105.08,105.0,10.7]
[1644539134305,41.80689994,105.08,105.0,10.7]
[1644539134703,39.74541784,105.07,105.0,10.7]
[1644539134904,14.2929,105.06,105.0,10.7]
[1644539135105,40.71688875,105.05,105.0,10.7]
[1644539136107,55.01098875,105.05,105.0,10.7]
[1644539136311,11.13,105.04,104.86,61.0887]
[1644539136510,4.763,105.03,104.88,72.1533]
[1644539136712,4.763,105.03,104.9,14.2094]
[1644539136913,4.763,105.03,104.91,2.01913593]
[1644539137113,38.19969888,105.02,104.92,43.924852]
[1644539137313,38.19969888,105.02,104.92,57.222552]
[1644539137314,52.49889888,105.02,104.92,57.222552]
[1644539137512,4.763,105.03,104.92,57.222552]
[1644539137714,15.893,105.06,104.92,59.24168793]
[1644539137921,15.893,105.06,104.92,71.89274052]
[1644539138518,46.14012957,105.05,104.92,59.49168793]
[1644539138714,43.35928975,105.03,104.92,57.222552]
[1644539138916,36.94053762,105.01,104.92,57.222552]
[1644539139115,11.13,105.04,104.92,57.222552]
[1644539139314,4.763,105.03,104.93,2.01939431]
[1644539139514,4.763,105.03,104.94,14.2958]
[1644539140114,4.763,105.03,104.95,47.43647691]
[1644539140318,11.13,105.04,104.95,47.68647691]
[1644539140517,4.761,105.06,104.95,49.70587122]
[1644539140717,4.761,105.09,104.96,2.01939431]
[1644539140917,16.0,105.1,104.96,0.01939431]
[1644539141121,20.76,105.1,104.97,13.14939431]
[1644539141342,20.76,105.1,104.99,47.616]
[1644539141541,20.76,105.1,105.0,37.13656992]
[1644539141740,20.76,105.1,105.0,37.38656992]
[1644539141941,34.51088072,105.09,105.01,2.014717]
[1644539142139,34.51088072,105.09,105.02,39.31446757]
[1644539142339,16.0,105.1,105.02,39.31446757]
[1644539142740,16.0,105.1,105.02,39.56446757]
[1644539143140,24.2579,105.13,105.03,2.014717]
[1644539143141,4.759,105.12,105.03,2.014717]
[1644539143343,69.61893906,105.15,105.04,38.39528762]
[1644539143544,14.2804,105.16,105.04,38.39528762]
[1644539143744,4.757,105.15,105.05,23.8366]
[1644539144145,4.757,105.15,105.05,24.0866]
[1644539144542,50.77740499,105.15,105.06,34.63605091]
[1644539144743,65.05720499,105.15,105.06,48.91535091]
[1644539146142,65.30720499,105.15,105.06,48.91535091]
[1644539148046,19.2868,105.15,105.06,48.91535091]
[1644539148448,14.5298,105.15,105.06,48.91535091]
[1644539149050,59.71019842,105.15,105.06,48.91535091]
[1644539149851,4.757,105.14,105.06,48.91535091]
[1644539151054,19.0368,105.15,105.06,48.91535091]
[1644539151558,4.757,105.15,105.06,48.91535091]
[1644539151753,4.757,105.17,105.1,14.2733]
[1644539151954,4.756,105.2,105.1,14.2733]
[1644539152154,4.756,105.2,105.1,16.538017]
[1644539152354,47.26832358,105.19,105.11,34.38676179]
[1644539152553,44.61120178,105.17,105.11,34.38676179]
[1644539153155,44.61120178,105.17,105.07,48.7891]
[1644539153353,4.756,105.16,105.07,48.7891]
[1644539153555,4.756,105.16,105.02,37.5957]
[1644539153556,4.756,105.16,105.02,23.1559]
[1644539153755,7.23722154,105.16,105.05,2.014717]
[1644539153953,62.52772154,105.15,105.05,2.014717]
[1644539154156,39.84860825,105.14,105.06,44.40351416]
[1644539154353,39.84860825,105.14,105.05,14.2807]
[1644539154555,53.20982979,105.14,105.03,2.014717]
[1644539154755,70.26515065,105.14,104.97,8.25397878]
[1644539154955,70.26515065,105.14,104.94,70.884]
[1644539154956,23.7497,105.13,104.94,70.884]
[1644539155256,14.2935,105.07,104.95,14.2935]
[1644539155454,103.1741108,105.07,104.95,57.68451559]
[1644539155856,19.0545,105.07,104.96,2.014717]
[1644539156056,15.891,105.11,104.96,2.014717]
[1644539156254,15.891,105.11,104.98,14.2898]
[1644539156255,14.2883,105.09,104.98,14.2898]
[1644539156454,15.891,105.11,104.98,14.2898]
[1644539156659,4.761,105.11,104.99,2.014717]
[1644539156857,40.10691789,105.1,104.99,43.25460625]
[1644539157056,4.761,105.11,104.99,43.25460625]
[1644539157254,29.1948,105.12,105.0,2.014717]
[1644539157455,14.2859,105.1,105.02,14.284]
[1644539157656,4.759,105.09,105.0,2.014717]
[1644539157853,4.759,105.1,104.99,40.98988925]
[1644539158057,42.7114983,105.07,104.99,40.98988925]
[1644539158255,37.90050408,105.05,104.99,40.98988925]
[1644539158655,14.2915,105.06,104.99,40.98988925]
[1644539158855,19.0515,105.06,104.99,40.98988925]
[1644539159057,19.0515,105.06,104.96,14.2919]
[1644539159257,19.0515,105.06,104.92,25.1224]
[1644539159459,48.0066,105.05,104.92,27.137117]
[1644539159859,14.295,105.04,104.94,14.2947]
[1644539160057,55.2857293,105.04,104.95,45.87051989]
[1644539160257,55.2857293,105.04,104.94,14.2947]
[1644539160459,2.23122154,105.03,104.9,60.1463]
[1644539160658,15.893,105.02,104.9,0.1048]
[1644539161057,14.3002,105.0,104.9,0.1048]
[1644539161260,47.10372091,104.99,104.9,40.56059221]
[1644539162059,47.10372091,104.99,104.9,54.86119221]
[1644539162260,4.764,105.01,104.9,55.11119221]
[1644539162458,15.894,105.02,104.9,55.11119221]
[1644539162660,11.13,105.02,104.9,55.11119221]
[1644539162958,11.13,105.02,104.9,54.86119221]
[1644539163158,49.26995852,105.01,104.9,54.86119221]
[1644539163359,60.39995852,105.01,104.9,54.86119221]
[1644539163559,2.23122154,105.0,104.9,40.56059221]
[1644539163760,4.764,104.99,104.85,24.32523872]
[1644539163961,11.58,104.98,104.8,47.5065]
[1644539164260,4.766,104.97,104.83,15.203486]
[1644539164459,14.3129,104.94,104.83,0.897786]
[1644539164662,104.37193103,104.93,104.84,48.53341251]
[1644539165260,56.80193103,104.93,104.84,48.53341251]
[1644539165460,52.03493103,104.93,104.84,50.54356192]
[1644539165659,4.767,104.92,104.84,48.53341251]
[1644539166060,45.5944,104.94,104.84,48.53341251]
[1644539166261,61.4904,104.94,104.84,48.53341251]
[1644539166862,35.271104,104.93,104.84,48.53341251]
[1644539167063,15.897,104.92,104.84,48.53341251]
[1644539167264,37.15672481,104.91,104.83,0.897786]
[1644539167664,48.28672481,104.91,104.83,0.897786]
[1644539168066,50.51794635,104.91,104.83,0.897786]
[1644539168265,52.1023,104.9,104.83,41.63923221]
[1644539168463,47.49863762,104.89,104.83,41.63923221]
[1644539168664,4.768,104.88,104.83,41.63923221]
[1644539168863,11.13,104.89,104.83,41.63923221]
[1644539169065,4.768,104.9,104.83,41.63923221]
[1644539169564,4.768,104.9,104.83,41.13923221]
[1644539169766,4.768,104.92,104.83,41.38923221]
[1644539169964,45.98981685,104.92,104.83,41.38923221]
[1644539170168,15.897,104.94,104.83,41.38923221]
[1644539171165,43.42406495,104.93,104.83,41.38923221]
[1644539172274,15.897,104.95,104.84,17.0]
[1644539172469,11.13,104.97,104.84,17.0]
[1644539172668,4.766,105.0,104.85,2.01541919]
[1644539172868,4.765,105.01,104.86,11.13]
[1644539173068,11.13,105.05,104.86,24.74005259]
[1644539173268,40.14184295,105.02,104.87,54.51027086]
[1644539173468,40.14184295,105.02,104.92,43.33347162]
[1644539173670,4.764,105.01,104.88,61.15701919]
[1644539173868,4.764,105.01,104.88,59.3916]
[1644539174271,4.764,105.01,104.88,65.3916]
[1644539174469,51.2183,105.01,104.88,59.1416]
[1644539174670,45.55497982,105.0,104.89,41.8766719]
[1644539174873,4.764,104.99,104.89,41.8766719]